[Event "Titled Tuesday Blitz November 9 2021"]
[White "Garcia Ramos, Daniel"]
[Black "Zhigalko, Sergei"]
[WhiteFideId "32010311"]
[BlackFideId "13502956"]
[WhiteElo "2267"]
[BlackElo "2662"]
[Result "0-1"]
[Round "02"]
[TimeControl "180+1"]
[Date "2021.11.09"]
[WhiteClock "0:00:07"]
[BlackClock "0:00:04"]

1. e4 {[%clk 0:03:00]}  c5 {[%clk 0:02:59]} 2. Nf3 {[%clk 0:03:00]}  Nc6 {[%clk 0:03:00]} 3. d4 {[%clk 0:03:01]}  cxd4 {[%clk 0:03:01]} 4. Nxd4 {[%clk 0:03:01]}  Nf6 {[%clk 0:03:01]} 5. Nc3 {[%clk 0:03:02]}  e5 {[%clk 0:03:02]} 6. Ndb5 {[%clk 0:03:02]}  d6 {[%clk 0:03:02]} 7. Nd5 {[%clk 0:03:02]}  Nxd5 {[%clk 0:03:02]} 8. exd5 {[%clk 0:03:03]}  Nb8 {[%clk 0:03:02]} 9. a4 {[%clk 0:03:03]}  Be7 {[%clk 0:03:02]} 10. Be2 {[%clk 0:03:03]}  O-O {[%clk 0:03:01]} 11. O-O {[%clk 0:03:03]}  f5 {[%clk 0:03:01]} 12. Bd2 {[%clk 0:03:02]}  Nd7 {[%clk 0:02:57]} 13. a5 {[%clk 0:03:02]}  Nf6 {[%clk 0:02:54]} 14. Bb4 {[%clk 0:02:52]}  a6 {[%clk 0:02:12]} 15. Na3 {[%clk 0:02:51]}  Bd7 {[%clk 0:02:10]} 16. Nc4 {[%clk 0:02:48]}  Bb5 {[%clk 0:02:01]} 17. Nb6 {[%clk 0:02:14]}  Bxe2 {[%clk 0:02:00]} 18. Qxe2 {[%clk 0:02:14]}  Rb8 {[%clk 0:02:01]} 19. c4 {[%clk 0:01:53]}  Nd7 {[%clk 0:01:44]} 20. Nxd7 {[%clk 0:01:32]}  Qxd7 {[%clk 0:01:45]} 21. Bc3 {[%clk 0:01:32]}  Rbc8 {[%clk 0:01:35]} 22. b3 {[%clk 0:01:26]}  Bg5 {[%clk 0:01:35]} 23. Ra4 {[%clk 0:01:17]}  Rce8 {[%clk 0:01:31]} 24. Rb4 {[%clk 0:01:06]}  e4 {[%clk 0:01:28]} 25. Bd4 {[%clk 0:01:03]}  f4 {[%clk 0:01:26]} 26. f3 {[%clk 0:00:51]}  e3 {[%clk 0:01:10]} 27. Rc1 {[%clk 0:00:44]}  Bf6 {[%clk 0:00:58]} 28. Bb6 {[%clk 0:00:35]}  g5 {[%clk 0:00:51]} 29. c5 {[%clk 0:00:26]}  dxc5 {[%clk 0:00:46]} 30. Bxc5 {[%clk 0:00:27]}  Rf7 {[%clk 0:00:35]} 31. Re4 {[%clk 0:00:25]}  Rc8 {[%clk 0:00:33]} 32. Qd3 {[%clk 0:00:20]}  Qb5 {[%clk 0:00:25]} 33. Qxb5 {[%clk 0:00:17]}  axb5 {[%clk 0:00:26]} 34. b4 {[%clk 0:00:17]}  Rd7 {[%clk 0:00:26]} 35. Re6 {[%clk 0:00:16]}  Kf7 {[%clk 0:00:25]} 36. Rb6 {[%clk 0:00:13]}  Bd4 {[%clk 0:00:15]} 37. Rxb5 {[%clk 0:00:08]}  e2+ {[%clk 0:00:12]} 38. Kh1 {[%clk 0:00:08]}  Bxc5 {[%clk 0:00:04]} 39. bxc5 {[%clk 0:00:07]}  Rxd5 {[%clk 0:00:04]} 40. Rxb7+ {[%clk 0:00:07]}  Kg6 {[%clk 0:00:04]} 41. Re1 {[%clk 0:00:07]}  Rd1 {[%clk 0:00:03]} 42. Rb1 {[%clk 0:00:08]}  Rxb1 {[%clk 0:00:03]} 43. Rxb1 {[%clk 0:00:07]}  Rd8 {[%clk 0:00:04]} 44. Kg1 {[%clk 0:00:06]}  Rd1+ {[%clk 0:00:04]} 45. Kf2 {[%clk 0:00:06]}  Rxb1 {[%clk 0:00:04]} 46. Kxe2 {[%clk 0:00:07]}  Rc1 {[%clk 0:00:04]} 47. a6 {[%clk 0:00:07]}  Rxc5 {[%clk 0:00:04]} 0-1


[Site "https://www.chess.com"]

[Event "Titled Tuesday Blitz November 9 2021"]
[White "Grachev, Boris"]
[Black "Vestby-Ellingsen, Mads"]
[WhiteFideId "4129199"]
[BlackFideId "1520857"]
[WhiteElo "2555"]
[BlackElo "2232"]
[Result "1-0"]
[Round "02"]
[TimeControl "180+1"]
[Date "2021.11.09"]
[WhiteClock "0:01:20"]
[BlackClock "0:00:14"]

1. d4 {[%clk 0:03:00]}  Nf6 {[%clk 0:02:58]} 2. Bf4 {[%clk 0:03:00]}  d5 {[%clk 0:02:56]} 3. e3 {[%clk 0:03:00]}  c5 {[%clk 0:02:55]} 4. c3 {[%clk 0:03:00]}  Nc6 {[%clk 0:02:55]} 5. Nd2 {[%clk 0:03:01]}  cxd4 {[%clk 0:02:53]} 6. exd4 {[%clk 0:03:00]}  Bf5 {[%clk 0:02:50]} 7. Ngf3 {[%clk 0:03:00]}  e6 {[%clk 0:02:49]} 8. Be2 {[%clk 0:02:59]}  Bd6 {[%clk 0:02:49]} 9. Bxd6 {[%clk 0:02:59]}  Qxd6 {[%clk 0:02:49]} 10. O-O {[%clk 0:03:00]}  h6 {[%clk 0:02:48]} 11. Nb3 {[%clk 0:02:59]}  O-O {[%clk 0:02:48]} 12. Re1 {[%clk 0:02:55]}  Rab8 {[%clk 0:02:44]} 13. a4 {[%clk 0:02:54]}  a6 {[%clk 0:02:40]} 14. Bd3 {[%clk 0:02:54]}  Bxd3 {[%clk 0:02:36]} 15. Qxd3 {[%clk 0:02:55]}  b5 {[%clk 0:02:37]} 16. Nc5 {[%clk 0:02:47]}  Ne7 {[%clk 0:02:05]} 17. axb5 {[%clk 0:02:44]}  axb5 {[%clk 0:02:06]} 18. b4 {[%clk 0:02:36]}  Nf5 {[%clk 0:02:05]} 19. Ra6 {[%clk 0:02:35]}  Rb6 {[%clk 0:02:03]} 20. Ra5 {[%clk 0:02:33]}  Qb8 {[%clk 0:02:00]} 21. Ne5 {[%clk 0:02:31]}  Rd8 {[%clk 0:01:53]} 22. Rea1 {[%clk 0:02:31]}  Nd6 {[%clk 0:01:52]} 23. Ra7 {[%clk 0:02:29]}  Qc8 {[%clk 0:01:35]} 24. Qf3 {[%clk 0:02:22]}  Rf8 {[%clk 0:01:29]} 25. Ned7 {[%clk 0:02:12]}  Nxd7 {[%clk 0:01:17]} 26. Nxd7 {[%clk 0:02:12]}  Rc6 {[%clk 0:01:17]} 27. Nxf8 {[%clk 0:02:04]}  Rxc3 {[%clk 0:01:17]} 28. Qf4 {[%clk 0:01:49]}  g5 {[%clk 0:01:07]} 29. Qd2 {[%clk 0:01:30]}  Ne4 {[%clk 0:01:01]} 30. Qe2 {[%clk 0:01:23]}  Rc2 {[%clk 0:00:32]} 31. Ng6 {[%clk 0:01:21]}  fxg6 {[%clk 0:00:21]} 32. Ra8 {[%clk 0:01:19]}  Rxe2 {[%clk 0:00:17]} 33. Rxc8+ {[%clk 0:01:19]}  Kf7 {[%clk 0:00:13]} 34. Ra7+ {[%clk 0:01:20]}  Kf6 {[%clk 0:00:14]} 35. Rf8# {[%clk 0:01:20]} 1-0


[Site "https://www.chess.com"]

[Event "Titled Tuesday Blitz November 9 2021"]
[White "Hansen, Eric"]
[Black "Korchmar, Vasiliy"]
[WhiteFideId "2606771"]
[BlackFideId "24131750"]
[WhiteElo "2568"]
[BlackElo "2370"]
[Result "1-0"]
[Round "02"]
[TimeControl "180+1"]
[Date "2021.11.09"]
[WhiteClock "0:02:13"]
[BlackClock "0:00:33"]

1. d4 {[%clk 0:03:00]}  Nf6 {[%clk 0:02:59]} 2. c4 {[%clk 0:02:56]}  c6 {[%clk 0:02:59]} 3. Nf3 {[%clk 0:02:51]}  d5 {[%clk 0:02:59]} 4. Qb3 {[%clk 0:02:50]}  dxc4 {[%clk 0:02:56]} 5. Qxc4 {[%clk 0:02:50]}  Bf5 {[%clk 0:02:56]} 6. g3 {[%clk 0:02:51]}  e6 {[%clk 0:02:55]} 7. Bg2 {[%clk 0:02:49]}  Nbd7 {[%clk 0:02:56]} 8. O-O {[%clk 0:02:49]}  Be7 {[%clk 0:02:56]} 9. e3 {[%clk 0:02:48]}  O-O {[%clk 0:02:56]} 10. Qe2 {[%clk 0:02:48]}  Ne4 {[%clk 0:02:54]} 11. Nc3 {[%clk 0:02:45]}  h6 {[%clk 0:02:33]} 12. Nd2 {[%clk 0:02:42]}  Nxc3 {[%clk 0:02:18]} 13. bxc3 {[%clk 0:02:42]}  e5 {[%clk 0:02:17]} 14. Bb2 {[%clk 0:02:39]}  Qb6 {[%clk 0:02:12]} 15. Nc4 {[%clk 0:02:29]}  Qa6 {[%clk 0:02:11]} 16. Rfe1 {[%clk 0:02:30]}  Bf6 {[%clk 0:01:30]} 17. Bf1 {[%clk 0:02:23]}  c5 {[%clk 0:01:07]} 18. Qf3 {[%clk 0:02:17]}  b5 {[%clk 0:00:33]} 19. Qxf5 {[%clk 0:02:13]} 1-0


[Site "https://www.chess.com"]

[Event "Titled Tuesday Blitz November 9 2021"]
[White "Kamsky, Gata"]
[Black "Hasangatin, Ramil"]
[WhiteFideId "2000024"]
[BlackFideId "4122160"]
[WhiteElo "2645"]
[BlackElo "2375"]
[Result "1/2-1/2"]
[Round "02"]
[TimeControl "180+1"]
[Date "2021.11.09"]
[WhiteClock "0:01:05"]
[BlackClock "0:01:11"]

1. e4 {[%clk 0:03:00]}  d5 {[%clk 0:02:58]} 2. exd5 {[%clk 0:02:58]}  Qxd5 {[%clk 0:02:59]} 3. Nc3 {[%clk 0:02:57]}  Qd6 {[%clk 0:03:00]} 4. d4 {[%clk 0:02:56]}  c6 {[%clk 0:02:58]} 5. Ne4 {[%clk 0:02:46]}  Qe6 {[%clk 0:02:58]} 6. Qe2 {[%clk 0:02:44]}  Nf6 {[%clk 0:02:58]} 7. Ng5 {[%clk 0:02:36]}  Qxe2+ {[%clk 0:02:54]} 8. Bxe2 {[%clk 0:02:28]}  Bf5 {[%clk 0:02:54]} 9. c3 {[%clk 0:02:27]}  h6 {[%clk 0:02:48]} 10. N5f3 {[%clk 0:02:27]}  Nbd7 {[%clk 0:02:49]} 11. Bf4 {[%clk 0:02:26]}  e6 {[%clk 0:02:48]} 12. Ne5 {[%clk 0:02:24]}  Nxe5 {[%clk 0:02:41]} 13. Bxe5 {[%clk 0:02:24]}  Be7 {[%clk 0:02:39]} 14. Nf3 {[%clk 0:02:23]}  O-O {[%clk 0:02:36]} 15. O-O {[%clk 0:02:17]}  Rfd8 {[%clk 0:02:33]} 16. Rfd1 {[%clk 0:02:17]}  Rac8 {[%clk 0:02:33]} 17. h3 {[%clk 0:02:15]}  Nd5 {[%clk 0:02:28]} 18. c4 {[%clk 0:02:10]}  Nb6 {[%clk 0:02:25]} 19. Rac1 {[%clk 0:02:06]}  Be4 {[%clk 0:02:09]} 20. Nd2 {[%clk 0:02:02]}  Bg6 {[%clk 0:02:09]} 21. Nf3 {[%clk 0:01:53]}  Be4 {[%clk 0:02:08]} 22. Bf4 {[%clk 0:01:43]}  Bxf3 {[%clk 0:01:57]} 23. Bxf3 {[%clk 0:01:41]}  Bf6 {[%clk 0:01:57]} 24. Be3 {[%clk 0:01:31]}  Rd7 {[%clk 0:01:57]} 25. b3 {[%clk 0:01:15]}  Rcd8 {[%clk 0:01:56]} 26. d5 {[%clk 0:01:16]}  cxd5 {[%clk 0:01:50]} 27. Bxb6 {[%clk 0:01:15]}  axb6 {[%clk 0:01:49]} 28. cxd5 {[%clk 0:01:16]}  exd5 {[%clk 0:01:45]} 29. a4 {[%clk 0:01:16]}  Be5 {[%clk 0:01:19]} 30. Kf1 {[%clk 0:01:11]}  g6 {[%clk 0:01:17]} 31. Ke2 {[%clk 0:01:11]}  h5 {[%clk 0:01:16]} 32. Kd3 {[%clk 0:01:05]}  Kg7 {[%clk 0:01:11]} 1/2-1/2


[Site "https://www.chess.com"]

[Event "Titled Tuesday Blitz November 9 2021"]
[White "Kim, Sergey"]
[Black "Moskalenko, Alexander"]
[WhiteFideId "13700570"]
[BlackFideId "4155351"]
[WhiteElo "2582"]
[BlackElo "2515"]
[Result "0-1"]
[Round "02"]
[TimeControl "180+1"]
[Date "2021.11.09"]
[WhiteClock "0:00:58"]
[BlackClock "0:01:27"]

1. d4 {[%clk 0:03:00]}  Nf6 {[%clk 0:02:59]} 2. c4 {[%clk 0:03:00]}  e6 {[%clk 0:03:00]} 3. Nc3 {[%clk 0:02:59]}  Bb4 {[%clk 0:02:59]} 4. Qc2 {[%clk 0:02:59]}  O-O {[%clk 0:02:58]} 5. a3 {[%clk 0:02:59]}  Bxc3+ {[%clk 0:02:58]} 6. Qxc3 {[%clk 0:02:59]}  d6 {[%clk 0:02:59]} 7. Nf3 {[%clk 0:02:59]}  b6 {[%clk 0:02:59]} 8. g3 {[%clk 0:03:00]}  Bb7 {[%clk 0:02:59]} 9. Bg2 {[%clk 0:03:00]}  c6 {[%clk 0:02:58]} 10. O-O {[%clk 0:03:00]}  Nbd7 {[%clk 0:02:59]} 11. b3 {[%clk 0:02:58]}  c5 {[%clk 0:02:59]} 12. dxc5 {[%clk 0:02:52]}  bxc5 {[%clk 0:02:56]} 13. Bb2 {[%clk 0:02:52]}  Qe7 {[%clk 0:02:55]} 14. Rfd1 {[%clk 0:02:45]}  Rfd8 {[%clk 0:02:52]} 15. Bh3 {[%clk 0:02:44]}  a5 {[%clk 0:02:51]} 16. Rd2 {[%clk 0:02:40]}  e5 {[%clk 0:02:46]} 17. Qc2 {[%clk 0:02:28]}  Be4 {[%clk 0:02:43]} 18. Qc3 {[%clk 0:02:27]}  Bc6 {[%clk 0:02:42]} 19. Qc2 {[%clk 0:02:25]}  Be4 {[%clk 0:02:40]} 20. Qc3 {[%clk 0:02:25]}  Bg6 {[%clk 0:02:41]} 21. Qe3 {[%clk 0:02:21]}  Nf8 {[%clk 0:02:36]} 22. Nh4 {[%clk 0:02:21]}  Ne6 {[%clk 0:02:35]} 23. Nxg6 {[%clk 0:02:17]}  hxg6 {[%clk 0:02:36]} 24. Bxe6 {[%clk 0:02:16]}  Qxe6 {[%clk 0:02:33]} 25. Rad1 {[%clk 0:02:15]}  Rd7 {[%clk 0:02:29]} 26. f4 {[%clk 0:02:10]}  Rad8 {[%clk 0:01:54]} 27. fxe5 {[%clk 0:02:03]}  Ng4 {[%clk 0:01:54]} 28. Qe4 {[%clk 0:02:03]}  dxe5 {[%clk 0:01:46]} 29. Rxd7 {[%clk 0:01:48]}  Rxd7 {[%clk 0:01:47]} 30. Rxd7 {[%clk 0:01:48]}  Qxd7 {[%clk 0:01:48]} 31. Qd5 {[%clk 0:01:31]}  Qf5 {[%clk 0:01:42]} 32. Qd8+ {[%clk 0:01:30]}  Kh7 {[%clk 0:01:41]} 33. Qh4+ {[%clk 0:01:29]}  Nh6 {[%clk 0:01:39]} 34. e4 {[%clk 0:01:26]}  Qf3 {[%clk 0:01:35]} 35. Bxe5 {[%clk 0:01:25]}  Qxb3 {[%clk 0:01:34]} 36. Bf4 {[%clk 0:01:19]}  Qb1+ {[%clk 0:01:30]} 37. Kf2 {[%clk 0:01:13]}  Qxe4 {[%clk 0:01:30]} 38. Qd8 {[%clk 0:01:08]}  Ng4+ {[%clk 0:01:27]} 39. Kg1 {[%clk 0:00:58]}  Qe1+ {[%clk 0:01:26]} 40. Kg2 {[%clk 0:00:58]}  Qe2+ {[%clk 0:01:27]} 41. Kh3 {[%clk 0:00:58]}  Qxh2+ {[%clk 0:01:27]} 0-1


[Site "https://www.chess.com"]

[Event "Titled Tuesday Blitz November 9 2021"]
[White "Kislov, Oleg"]
[Black "Siva Mahadevan"]
[WhiteFideId "13503774"]
[BlackFideId "25043153"]
[WhiteElo "2252"]
[BlackElo "2203"]
[Result "0-1"]
[Round "02"]
[TimeControl "180+1"]
[Date "2021.11.09"]
[WhiteClock "0:00:09"]
[BlackClock "0:00:04"]

1. e4 {[%clk 0:03:00]}  c5 {[%clk 0:02:59]} 2. Nf3 {[%clk 0:03:00]}  Nc6 {[%clk 0:02:59]} 3. c3 {[%clk 0:03:01]}  e5 {[%clk 0:02:58]} 4. Bc4 {[%clk 0:02:59]}  Be7 {[%clk 0:02:57]} 5. d4 {[%clk 0:02:58]}  cxd4 {[%clk 0:02:57]} 6. cxd4 {[%clk 0:02:59]}  exd4 {[%clk 0:02:58]} 7. Nxd4 {[%clk 0:02:56]}  Nf6 {[%clk 0:02:57]} 8. Nc3 {[%clk 0:02:51]}  O-O {[%clk 0:02:56]} 9. O-O {[%clk 0:02:49]}  d6 {[%clk 0:02:53]} 10. Bf4 {[%clk 0:02:37]}  Ne5 {[%clk 0:02:52]} 11. Bb3 {[%clk 0:02:33]}  a6 {[%clk 0:02:50]} 12. f3 {[%clk 0:02:30]}  b5 {[%clk 0:02:48]} 13. Qd2 {[%clk 0:02:25]}  Bb7 {[%clk 0:02:47]} 14. Rfd1 {[%clk 0:02:24]}  g6 {[%clk 0:02:46]} 15. Bh6 {[%clk 0:02:00]}  Re8 {[%clk 0:02:46]} 16. Rac1 {[%clk 0:01:42]}  Rc8 {[%clk 0:02:45]} 17. Kh1 {[%clk 0:01:27]}  Qd7 {[%clk 0:02:24]} 18. Nf5 {[%clk 0:01:21]}  gxf5 {[%clk 0:02:11]} 19. Qg5+ {[%clk 0:01:19]}  Ng6 {[%clk 0:02:12]} 20. exf5 {[%clk 0:01:12]}  Rc5 {[%clk 0:01:25]} 21. fxg6 {[%clk 0:00:58]}  Rxg5 {[%clk 0:01:25]} 22. gxf7+ {[%clk 0:00:58]}  Kh8 {[%clk 0:01:25]} 23. fxe8=Q+ {[%clk 0:00:55]}  Nxe8 {[%clk 0:01:26]} 24. Bxg5 {[%clk 0:00:52]}  Bxg5 {[%clk 0:01:27]} 25. Rc2 {[%clk 0:00:50]}  Qf5 {[%clk 0:01:21]} 26. Re2 {[%clk 0:00:47]}  Nf6 {[%clk 0:01:13]} 27. Rxd6 {[%clk 0:00:44]}  b4 {[%clk 0:00:50]} 28. Re7 {[%clk 0:00:31]}  Ng8 {[%clk 0:00:19]} 29. Re8 {[%clk 0:00:25]}  h6 {[%clk 0:00:03]} 30. Rxg8+ {[%clk 0:00:25]}  Kh7 {[%clk 0:00:03]} 31. Ne4 {[%clk 0:00:20]}  Bxe4 {[%clk 0:00:04]} 32. Re8 {[%clk 0:00:17]}  Bxf3 {[%clk 0:00:04]} 33. Rc6 {[%clk 0:00:09]}  Qb1+ {[%clk 0:00:04]} 0-1


[Site "https://www.chess.com"]

[Event "Titled Tuesday Blitz November 9 2021"]
[White "Koellner, Ruben Gideon"]
[Black "Svane, Frederik"]
[WhiteFideId "12993093"]
[BlackFideId "12923044"]
[WhiteElo "2585"]
[BlackElo "2459"]
[Result "0-1"]
[Round "02"]
[TimeControl "180+1"]
[Date "2021.11.09"]
[WhiteClock "0:00:04"]
[BlackClock "0:00:06"]

1. d4 {[%clk 0:03:00]}  Nf6 {[%clk 0:03:00]} 2. Bg5 {[%clk 0:03:00]}  e6 {[%clk 0:03:00]} 3. Nd2 {[%clk 0:02:58]}  c5 {[%clk 0:03:00]} 4. e3 {[%clk 0:02:58]}  cxd4 {[%clk 0:02:59]} 5. exd4 {[%clk 0:02:59]}  Be7 {[%clk 0:03:00]} 6. c3 {[%clk 0:02:56]}  b6 {[%clk 0:02:56]} 7. Ngf3 {[%clk 0:02:56]}  Bb7 {[%clk 0:02:56]} 8. Bd3 {[%clk 0:02:56]}  O-O {[%clk 0:02:55]} 9. Bxf6 {[%clk 0:02:55]}  Bxf6 {[%clk 0:02:55]} 10. Qe2 {[%clk 0:02:55]}  d6 {[%clk 0:02:48]} 11. h4 {[%clk 0:02:55]}  g6 {[%clk 0:02:43]} 12. h5 {[%clk 0:02:53]}  Bg7 {[%clk 0:02:41]} 13. hxg6 {[%clk 0:02:34]}  hxg6 {[%clk 0:02:42]} 14. O-O-O {[%clk 0:02:32]}  Re8 {[%clk 0:02:42]} 15. Kb1 {[%clk 0:02:31]}  Nc6 {[%clk 0:02:37]} 16. Ne4 {[%clk 0:02:28]}  d5 {[%clk 0:02:26]} 17. Neg5 {[%clk 0:02:19]}  e5 {[%clk 0:02:26]} 18. Nxf7 {[%clk 0:01:27]}  Kxf7 {[%clk 0:02:15]} 19. Bxg6+ {[%clk 0:00:58]}  Kxg6 {[%clk 0:02:15]} 20. Nh4+ {[%clk 0:00:56]}  Kf7 {[%clk 0:02:13]} 21. Qh5+ {[%clk 0:00:54]}  Kg8 {[%clk 0:02:12]} 22. Nf5 {[%clk 0:00:31]}  Qf6 {[%clk 0:01:38]} 23. Rd3 {[%clk 0:00:23]}  Re7 {[%clk 0:00:17]} 24. Rf3 {[%clk 0:00:06]}  Rf7 {[%clk 0:00:10]} 25. Qh7+ {[%clk 0:00:03]}  Kf8 {[%clk 0:00:11]} 26. Nh6 {[%clk 0:00:03]}  Qxf3 {[%clk 0:00:02]} 27. gxf3 {[%clk 0:00:02]}  Bxh6 {[%clk 0:00:02]} 28. Qxh6+ {[%clk 0:00:02]}  Ke7 {[%clk 0:00:03]} 29. dxe5 {[%clk 0:00:02]}  Raf8 {[%clk 0:00:03]} 30. Qg5+ {[%clk 0:00:03]}  Kd7 {[%clk 0:00:02]} 31. Rh6 {[%clk 0:00:04]}  Nd8 {[%clk 0:00:02]} 32. e6+ {[%clk 0:00:04]}  Nxe6 {[%clk 0:00:02]} 33. Qg4 {[%clk 0:00:05]}  Rf6 {[%clk 0:00:02]} 34. Rxf6 {[%clk 0:00:04]}  Rxf6 {[%clk 0:00:03]} 35. f4 {[%clk 0:00:04]}  Rxf4 {[%clk 0:00:03]} 36. Qg3 {[%clk 0:00:04]}  Bc6 {[%clk 0:00:03]} 37. Kc1 {[%clk 0:00:03]}  d4 {[%clk 0:00:04]} 38. cxd4 {[%clk 0:00:03]}  Rxd4 {[%clk 0:00:05]} 39. Qe3 {[%clk 0:00:03]}  Rc4+ {[%clk 0:00:03]} 40. Kd2 {[%clk 0:00:02]}  Rd4+ {[%clk 0:00:03]} 41. Kc3 {[%clk 0:00:02]}  Rd5 {[%clk 0:00:04]} 42. b3 {[%clk 0:00:03]}  Rc5+ {[%clk 0:00:03]} 43. Kb2 {[%clk 0:00:04]}  a5 {[%clk 0:00:03]} 44. Qd2+ {[%clk 0:00:04]}  Rd5 {[%clk 0:00:03]} 45. Qe3 {[%clk 0:00:05]}  Nc5 {[%clk 0:00:03]} 46. Qh6 {[%clk 0:00:04]}  Nd3+ {[%clk 0:00:03]} 47. Kc3 {[%clk 0:00:04]}  Kc7 {[%clk 0:00:04]} 48. Qg7+ {[%clk 0:00:04]}  Rd7 {[%clk 0:00:04]} 49. Qg3+ {[%clk 0:00:03]}  Kb7 {[%clk 0:00:05]} 50. Qe3 {[%clk 0:00:02]}  Nc5 {[%clk 0:00:05]} 51. a4 {[%clk 0:00:01]}  Rd3+ {[%clk 0:00:06]} 52. Kb2 {[%clk 0:00:02]}  Rxe3 {[%clk 0:00:06]} 53. fxe3 {[%clk 0:00:03]}  Be4 {[%clk 0:00:06]} 54. Kc3 {[%clk 0:00:03]}  Kc6 {[%clk 0:00:07]} 55. b4 {[%clk 0:00:04]}  Nxa4+ {[%clk 0:00:07]} 56. Kd4 {[%clk 0:00:04]}  Bd5 {[%clk 0:00:05]} 57. bxa5 {[%clk 0:00:04]}  bxa5 {[%clk 0:00:06]} 58. e4 {[%clk 0:00:04]}  Bxe4 {[%clk 0:00:06]} 0-1


[Site "https://www.chess.com"]

[Event "Titled Tuesday Blitz November 9 2021"]
[White "Kollars, Dmitrij"]
[Black "Tatarinov, Dmitry"]
[WhiteFideId "12909572"]
[BlackFideId "24160067"]
[WhiteElo "2584"]
[BlackElo "2295"]
[Result "1-0"]
[Round "02"]
[TimeControl "180+1"]
[Date "2021.11.09"]
[WhiteClock "0:00:14"]
[BlackClock "0:00:14"]

1. d4 {[%clk 0:03:00]}  Nf6 {[%clk 0:02:59]} 2. Nf3 {[%clk 0:03:00]}  d5 {[%clk 0:03:00]} 3. c4 {[%clk 0:03:01]}  e6 {[%clk 0:03:00]} 4. g3 {[%clk 0:02:59]}  Be7 {[%clk 0:03:00]} 5. Bg2 {[%clk 0:02:59]}  O-O {[%clk 0:03:01]} 6. O-O {[%clk 0:02:59]}  dxc4 {[%clk 0:03:01]} 7. Qc2 {[%clk 0:02:58]}  a6 {[%clk 0:03:01]} 8. a4 {[%clk 0:02:57]}  Bd7 {[%clk 0:02:58]} 9. Bg5 {[%clk 0:02:56]}  Bc6 {[%clk 0:02:56]} 10. Rd1 {[%clk 0:02:55]}  b5 {[%clk 0:02:50]} 11. Nbd2 {[%clk 0:02:51]}  Nbd7 {[%clk 0:02:47]} 12. e4 {[%clk 0:02:51]}  Bb7 {[%clk 0:02:43]} 13. Ne5 {[%clk 0:02:31]}  Nxe5 {[%clk 0:02:40]} 14. dxe5 {[%clk 0:02:31]}  Nd7 {[%clk 0:02:40]} 15. Bxe7 {[%clk 0:02:24]}  Qxe7 {[%clk 0:02:41]} 16. Qc3 {[%clk 0:02:22]}  Qc5 {[%clk 0:02:31]} 17. Nxc4 {[%clk 0:02:15]}  b4 {[%clk 0:02:12]} 18. Qd4 {[%clk 0:02:05]}  Rad8 {[%clk 0:02:07]} 19. Rac1 {[%clk 0:01:45]}  Ba8 {[%clk 0:01:45]} 20. a5 {[%clk 0:01:32]}  g6 {[%clk 0:01:42]} 21. h4 {[%clk 0:01:30]}  h5 {[%clk 0:01:41]} 22. Ne3 {[%clk 0:01:06]}  Qxd4 {[%clk 0:01:38]} 23. Rxd4 {[%clk 0:01:07]}  c5 {[%clk 0:01:31]} 24. Rd6 {[%clk 0:01:06]}  Nxe5 {[%clk 0:01:28]} 25. Rxd8 {[%clk 0:01:06]}  Rxd8 {[%clk 0:01:27]} 26. Rxc5 {[%clk 0:01:07]}  Nd3 {[%clk 0:01:27]} 27. Rc2 {[%clk 0:01:04]}  Ne5 {[%clk 0:01:13]} 28. f4 {[%clk 0:00:52]}  Nc6 {[%clk 0:01:13]} 29. Nc4 {[%clk 0:00:46]}  Rd1+ {[%clk 0:01:13]} 30. Kf2 {[%clk 0:00:46]}  Ra1 {[%clk 0:00:59]} 31. Rd2 {[%clk 0:00:43]}  Kg7 {[%clk 0:00:57]} 32. Rd7 {[%clk 0:00:35]}  Nxa5 {[%clk 0:00:54]} 33. Ne5 {[%clk 0:00:31]}  Ra2 {[%clk 0:00:47]} 34. Rxf7+ {[%clk 0:00:31]}  Kg8 {[%clk 0:00:48]} 35. Rc7 {[%clk 0:00:25]}  Rxb2+ {[%clk 0:00:46]} 36. Kg1 {[%clk 0:00:26]}  Bb7 {[%clk 0:00:41]} 37. Bh3 {[%clk 0:00:26]}  Rb1+ {[%clk 0:00:34]} 38. Kf2 {[%clk 0:00:25]}  Rb2+ {[%clk 0:00:35]} 39. Ke3 {[%clk 0:00:24]}  Rb3+ {[%clk 0:00:31]} 40. Kd4 {[%clk 0:00:25]}  Rxg3 {[%clk 0:00:23]} 41. Bxe6+ {[%clk 0:00:24]}  Kf8 {[%clk 0:00:23]} 42. f5 {[%clk 0:00:21]}  gxf5 {[%clk 0:00:22]} 43. exf5 {[%clk 0:00:22]}  Rc3 {[%clk 0:00:19]} 44. Ng6+ {[%clk 0:00:19]}  Ke8 {[%clk 0:00:19]} 45. Rh7 {[%clk 0:00:19]}  Nc6+ {[%clk 0:00:18]} 46. Kd5 {[%clk 0:00:15]}  Ne7+ {[%clk 0:00:18]} 47. Ke5 {[%clk 0:00:14]}  Nxg6+ {[%clk 0:00:15]} 48. fxg6 {[%clk 0:00:15]}  Rg3 {[%clk 0:00:14]} 49. Rxb7 {[%clk 0:00:14]} 1-0


[Site "https://www.chess.com"]

[Event "Titled Tuesday Blitz November 9 2021"]
[White "Lazavik, Denis"]
[Black "Golubev, Mikhail"]
[WhiteFideId "13515110"]
[BlackFideId "14100983"]
[WhiteElo "2436"]
[BlackElo "2374"]
[Result "1-0"]
[Round "02"]
[TimeControl "180+1"]
[Date "2021.11.09"]
[WhiteClock "0:00:08"]
[BlackClock "0:00:01"]

1. d4 {[%clk 0:03:00]}  Nf6 {[%clk 0:02:59]} 2. c4 {[%clk 0:03:01]}  g6 {[%clk 0:02:59]} 3. g3 {[%clk 0:03:00]}  Bg7 {[%clk 0:02:59]} 4. Bg2 {[%clk 0:03:01]}  O-O {[%clk 0:03:00]} 5. Nc3 {[%clk 0:03:01]}  d6 {[%clk 0:03:00]} 6. Nf3 {[%clk 0:03:02]}  Nbd7 {[%clk 0:02:59]} 7. O-O {[%clk 0:03:02]}  e5 {[%clk 0:02:59]} 8. e4 {[%clk 0:03:03]}  c6 {[%clk 0:02:55]} 9. h3 {[%clk 0:03:02]}  exd4 {[%clk 0:02:52]} 10. Nxd4 {[%clk 0:03:01]}  Qb6 {[%clk 0:02:51]} 11. Nde2 {[%clk 0:02:53]}  Re8 {[%clk 0:02:40]} 12. b3 {[%clk 0:02:39]}  Nc5 {[%clk 0:02:15]} 13. Be3 {[%clk 0:02:23]}  Qc7 {[%clk 0:02:07]} 14. f3 {[%clk 0:01:51]}  a5 {[%clk 0:01:43]} 15. Rc1 {[%clk 0:01:43]}  Nfd7 {[%clk 0:01:37]} 16. Qd2 {[%clk 0:01:39]}  Ne5 {[%clk 0:01:32]} 17. f4 {[%clk 0:01:27]}  Ned3 {[%clk 0:01:28]} 18. Rb1 {[%clk 0:01:17]}  f5 {[%clk 0:01:24]} 19. exf5 {[%clk 0:01:13]}  Bxf5 {[%clk 0:01:24]} 20. g4 {[%clk 0:01:11]}  Bc8 {[%clk 0:01:18]} 21. Bd4 {[%clk 0:01:02]}  Bxd4+ {[%clk 0:01:10]} 22. Nxd4 {[%clk 0:01:03]}  Qg7 {[%clk 0:01:10]} 23. Nce2 {[%clk 0:01:02]}  Qe7 {[%clk 0:00:58]} 24. Rf3 {[%clk 0:00:53]}  Nb4 {[%clk 0:00:31]} 25. a3 {[%clk 0:00:50]}  Ne4 {[%clk 0:00:31]} 26. Qb2 {[%clk 0:00:47]}  Na6 {[%clk 0:00:29]} 27. Re1 {[%clk 0:00:45]}  d5 {[%clk 0:00:28]} 28. Ng3 {[%clk 0:00:40]}  Nac5 {[%clk 0:00:20]} 29. b4 {[%clk 0:00:31]}  axb4 {[%clk 0:00:20]} 30. axb4 {[%clk 0:00:32]}  Ne6 {[%clk 0:00:14]} 31. Nxe4 {[%clk 0:00:29]}  Nxd4 {[%clk 0:00:07]} 32. Qxd4 {[%clk 0:00:20]}  dxe4 {[%clk 0:00:07]} 33. Rfe3 {[%clk 0:00:16]}  Qxb4 {[%clk 0:00:07]} 34. Bxe4 {[%clk 0:00:10]}  Be6 {[%clk 0:00:05]} 35. f5 {[%clk 0:00:08]}  gxf5 {[%clk 0:00:01]} 36. gxf5 {[%clk 0:00:08]}  Qxc4 {[%clk 0:00:01]} 37. Rg3+ {[%clk 0:00:08]} 1-0


[Site "https://www.chess.com"]